[Event "*** Titled Tuesday Blitz"]
[Site "Chess.com"]
[Date "2019.08.06"]
[Round "2"]
[White "ALEXJR20"]
[Black "alturas_pacificas"]
[Result "1-0"]
[WhiteElo "2190"]
[BlackElo "2237"]
[TimeControl "180+2"]
[EndTime "13:24:03 PDT"]
[Termination "ALEXJR20 won by resignation"]

1. c4 {[%clk 0:03:01.9]} 1... c6 {[%clk 0:02:49.4]} 2. d4 {[%clk 0:03:01.7]}
2... d5 {[%clk 0:02:50.3]} 3. cxd5 {[%clk 0:03:03.6]} 3... cxd5 {[%clk
0:02:52.2]} 4. Nc3 {[%clk 0:03:05.5]} 4... Nf6 {[%clk 0:02:53.4]} 5. Bf4 {[%clk
0:03:05.2]} 5... Nc6 {[%clk 0:02:54.3]} 6. e3 {[%clk 0:03:05.6]} 6... e6 {[%clk
0:02:54.2]} 7. Bd3 {[%clk 0:03:06.1]} 7... Bd6 {[%clk 0:02:55.3]} 8. Bxd6 {[%clk
0:03:07.4]} 8... Qxd6 {[%clk 0:02:57.2]} 9. f4 {[%clk 0:03:08.9]} 9... a6 {[%clk
0:02:54.3]} 10. Nf3 {[%clk 0:03:09.6]} 10... b5 {[%clk 0:02:55.5]} 11. Ne5
{[%clk 0:03:09.3]} 11... Bb7 {[%clk 0:02:56.2]} 12. Qf3 {[%clk 0:03:08.8]} 12...
Na5 {[%clk 0:02:24.8]} 13. O-O {[%clk 0:03:05.2]} 13... Nc4 {[%clk 0:02:25.9]}
14. b3 {[%clk 0:02:51.7]} 14... Nd2 {[%clk 0:02:24]} 15. Qg3 {[%clk 0:02:44.5]}
15... O-O {[%clk 0:02:11.4]} 16. Rfd1 {[%clk 0:02:26.6]} 16... Nde4 {[%clk
0:02:12.3]} 17. Nxe4 {[%clk 0:02:26.5]} 17... dxe4 {[%clk 0:02:06.6]} 18. Be2
{[%clk 0:02:26.9]} 18... Rac8 {[%clk 0:02:07.6]} 19. Rac1 {[%clk 0:02:23.9]}
19... Rxc1 {[%clk 0:02:03.4]} 20. Rxc1 {[%clk 0:02:25.8]} 20... Rc8 {[%clk
0:02:04.7]} 21. Qe1 {[%clk 0:02:26.1]} 21... Rxc1 {[%clk 0:01:55.6]} 22. Qxc1
{[%clk 0:02:28]} 22... Nd5 {[%clk 0:01:57.1]} 23. Qc5 {[%clk 0:01:43.8]} 23...
Qxc5 {[%clk 0:01:46.4]} 24. dxc5 {[%clk 0:01:45.7]} 24... Nxe3 {[%clk 0:01:48]}
25. c6 {[%clk 0:01:45.5]} 25... Bc8 {[%clk 0:01:48.7]} 26. Nd7 {[%clk
0:01:46.5]} 26... Nd5 {[%clk 0:01:43.8]} 27. g3 {[%clk 0:01:34.8]} 27... f6
{[%clk 0:01:38.7]} 28. a4 {[%clk 0:01:34.1]} 28... bxa4 {[%clk 0:01:36.4]} 29.
bxa4 {[%clk 0:01:34.4]} 29... Kf7 {[%clk 0:01:37.8]} 30. Bc4 {[%clk 0:01:34.3]}
30... Ke7 {[%clk 0:01:27]} 31. Bxd5 {[%clk 0:01:15.6]} 31... exd5 {[%clk
0:01:26.8]} 32. Nb6 {[%clk 0:01:08]} 32... Be6 {[%clk 0:01:05.1]} 33. c7 {[%clk
0:01:02]} 33... d4 {[%clk 0:01:06.1]} 34. c8=Q {[%clk 0:00:56.1]} 34... Bxc8
{[%clk 0:01:07.5]} 35. Nxc8+ {[%clk 0:00:58]} 35... Ke6 {[%clk 0:01:09]} 36. Kf2
{[%clk 0:00:51.3]} 36... Kd5 {[%clk 0:01:01.4]} 37. Ke2 {[%clk 0:00:46.6]} 37...
Kc4 {[%clk 0:00:53.7]} 38. Nd6+ {[%clk 0:00:43.6]} 38... Kd5 {[%clk 0:00:55]}
39. Ne8 {[%clk 0:00:44.3]} 39... Kc4 {[%clk 0:00:54.4]} 40. Nxg7 {[%clk
0:00:33.6]} 40... Kc3 {[%clk 0:00:55]} 41. Nf5 {[%clk 0:00:28.9]} 41... d3+
{[%clk 0:00:53.5]} 42. Kd1 {[%clk 0:00:29.4]} 42... Kb4 {[%clk 0:00:50.4]} 43.
Kd2 {[%clk 0:00:26.5]} 43... Kxa4 {[%clk 0:00:50.2]} 44. Nd6 {[%clk 0:00:27.6]}
44... Kb4 {[%clk 0:00:46.7]} 45. Nxe4 {[%clk 0:00:28.5]} 45... a5 {[%clk
0:00:47.8]} 46. Nf2 {[%clk 0:00:29.1]} 46... a4 {[%clk 0:00:47]} 47. Nxd3+
{[%clk 0:00:30.4]} 47... Kb5 {[%clk 0:00:39.9]} 48. Kc3 {[%clk 0:00:29.8]} 48...
a3 {[%clk 0:00:40.9]} 49. Kb3 {[%clk 0:00:29.8]} 49... a2 {[%clk 0:00:40.5]} 50.
Kxa2 {[%clk 0:00:30.2]} 50... Kc4 {[%clk 0:00:42.4]} 51. Nf2 {[%clk 0:00:23.3]}
51... f5 {[%clk 0:00:43.5]} 52. g4 {[%clk 0:00:19.7]} 52... fxg4 {[%clk
0:00:43.1]} 53. Nxg4 {[%clk 0:00:21.6]} 53... Kd4 {[%clk 0:00:45]} 54. Nf2
{[%clk 0:00:20.2]} 54... Ke3 {[%clk 0:00:45.4]} 55. f5 {[%clk 0:00:20.6]} 55...
Kxf2 {[%clk 0:00:46.9]} 56. f6 {[%clk 0:00:22.2]} 56... Kg2 {[%clk 0:00:48.6]}
57. f7 {[%clk 0:00:24.1]} 57... h5 {[%clk 0:00:50.1]} 58. f8=Q {[%clk
0:00:25.1]} 58... Kxh2 {[%clk 0:00:51.8]} 59. Qf2+ {[%clk 0:00:20.7]} 59... Kh3
{[%clk 0:00:51.5]} 60. Qf3+ {[%clk 0:00:22]} 60... Kh4 {[%clk 0:00:52.4]} 61.
Qh1+ {[%clk 0:00:23.4]} 61... Kg4 {[%clk 0:00:53.2]} 62. Kb3 {[%clk 0:00:25.3]}
62... h4 {[%clk 0:00:54.7]} 63. Kc3 {[%clk 0:00:27.2]} 63... Kg3 {[%clk
0:00:56.4]} 64. Kd2 {[%clk 0:00:29.1]} 64... h3 {[%clk 0:00:58.3]} 65. Ke2
{[%clk 0:00:30.6]} 65... h2 {[%clk 0:01:00.2]} 66. Ke3 {[%clk 0:00:30.2]} 66...
Kh3 {[%clk 0:01:02.1]} 67. Kf4 {[%clk 0:00:30.6]} 1-0

[Event "*** Titled Tuesday Blitz"]
[Site "Chess.com"]
[Date "2019.08.06"]
[Round "2"]
[White "Karacsonyi_Gellert"]
[Black "temus_galaktionov"]
[Result "0-1"]
[WhiteElo "2536"]
[BlackElo "2671"]
[TimeControl "180+2"]
[EndTime "13:24:04 PDT"]
[Termination "temus_galaktionov won by resignation"]

1. e4 {[%clk 0:03:01.9]} 1... c6 {[%clk 0:03:01.9]} 2. d4 {[%clk 0:03:02.5]}
2... g6 {[%clk 0:03:03.2]} 3. Nc3 {[%clk 0:03:02.4]} 3... Bg7 {[%clk 0:03:04.1]}
4. Nf3 {[%clk 0:03:04]} 4... d6 {[%clk 0:03:05.3]} 5. h3 {[%clk 0:03:04.7]} 5...
Nd7 {[%clk 0:03:06.3]} 6. Bf4 {[%clk 0:03:04.1]} 6... e5 {[%clk 0:03:07.6]} 7.
Bh2 {[%clk 0:03:04.8]} 7... Qe7 {[%clk 0:03:08.2]} 8. Be2 {[%clk 0:03:04.4]}
8... Ngf6 {[%clk 0:03:09]} 9. O-O {[%clk 0:03:03.3]} 9... O-O {[%clk 0:03:09.5]}
10. dxe5 {[%clk 0:02:51]} 10... dxe5 {[%clk 0:03:10.5]} 11. a4 {[%clk
0:02:49.8]} 11... Nh5 {[%clk 0:03:08]} 12. Qc1 {[%clk 0:02:46.9]} 12... a5
{[%clk 0:03:02.4]} 13. Qe3 {[%clk 0:02:45.3]} 13... Nc5 {[%clk 0:03:02.9]} 14.
Rad1 {[%clk 0:02:37.8]} 14... b6 {[%clk 0:02:59.9]} 15. Rd2 {[%clk 0:02:30.4]}
15... Bb7 {[%clk 0:02:54.3]} 16. Rfd1 {[%clk 0:02:31.4]} 16... Rfe8 {[%clk
0:02:52.1]} 17. g4 {[%clk 0:02:17.5]} 17... Nf4 {[%clk 0:02:52.5]} 18. Bxf4
{[%clk 0:02:18.2]} 18... exf4 {[%clk 0:02:53.6]} 19. Qxf4 {[%clk 0:02:19.9]}
19... Bxc3 {[%clk 0:02:54.7]} 20. bxc3 {[%clk 0:02:19.8]} 20... Qxe4 {[%clk
0:02:55.5]} 21. Qxe4 {[%clk 0:02:18.4]} 21... Nxe4 {[%clk 0:02:50.5]} 22. Rd7
{[%clk 0:02:05.7]} 22... Bc8 {[%clk 0:02:45.5]} 23. Rd8 {[%clk 0:02:06.8]} 23...
Be6 {[%clk 0:02:45.9]} 24. Rxa8 {[%clk 0:02:05.3]} 24... Rxa8 {[%clk 0:02:46.3]}
25. Rd3 {[%clk 0:01:09.6]} 25... Bc4 {[%clk 0:02:46.4]} 26. Re3 {[%clk 0:01:11]}
26... Bxe2 {[%clk 0:02:47.3]} 27. Nd4 {[%clk 0:01:01.6]} 27... Nc5 {[%clk
0:01:47.8]} 28. Rxe2 {[%clk 0:00:43.9]} 28... Nxa4 {[%clk 0:01:48.8]} 29. Nxc6
{[%clk 0:00:44.6]} 29... Nxc3 {[%clk 0:01:49.9]} 30. Re3 {[%clk 0:00:36.9]}
30... Nd5 {[%clk 0:01:50.6]} 31. Rd3 {[%clk 0:00:36.8]} 31... Nf4 {[%clk
0:01:51.2]} 32. Rb3 {[%clk 0:00:30.4]} 32... Ra6 {[%clk 0:01:00.8]} 33. Nb8
{[%clk 0:00:30]} 33... Ra8 {[%clk 0:01:01.1]} 34. Rxb6 {[%clk 0:00:30.1]} 34...
a4 {[%clk 0:01:01.4]} 35. Nc6 {[%clk 0:00:27.5]} 35... a3 {[%clk 0:01:01.7]} 36.
Rb1 {[%clk 0:00:28.8]} 36... Nxh3+ {[%clk 0:00:54.8]} 37. Kg2 {[%clk 0:00:27.6]}
37... Nf4+ {[%clk 0:00:56]} 38. Kf3 {[%clk 0:00:29]} 38... Nd5 {[%clk
0:00:57.2]} 39. c4 {[%clk 0:00:28.9]} 39... Nc3 {[%clk 0:00:57]} 40. Ra1 {[%clk
0:00:28.1]} 40... a2 {[%clk 0:00:58.2]} 41. Nb4 {[%clk 0:00:27.9]} 41... Rb8
{[%clk 0:00:57]} 42. Nc2 {[%clk 0:00:25.8]} 42... Rb2 {[%clk 0:00:56.5]} 43. Nd4
{[%clk 0:00:22.7]} 43... Na4 {[%clk 0:00:46.7]} 44. Ke3 {[%clk 0:00:19.6]} 44...
h5 {[%clk 0:00:46]} 45. gxh5 {[%clk 0:00:19.5]} 45... gxh5 {[%clk 0:00:47.9]}
46. Ne2 {[%clk 0:00:17.7]} 46... Kg7 {[%clk 0:00:45.3]} 47. Nc1 {[%clk
0:00:18.5]} 47... Nc3 {[%clk 0:00:42.3]} 48. Kd3 {[%clk 0:00:19.4]} 48... Rb1
{[%clk 0:00:43.3]} 49. Nxa2 {[%clk 0:00:16.7]} 49... Rxa1 {[%clk 0:00:43.3]} 50.
Nxc3 {[%clk 0:00:18.1]} 50... Kf6 {[%clk 0:00:44.2]} 51. c5 {[%clk 0:00:19.2]}
51... Ke6 {[%clk 0:00:43.6]} 52. Ne4 {[%clk 0:00:19.4]} 52... h4 {[%clk
0:00:42.2]} 53. c6 {[%clk 0:00:16.1]} 53... Rc1 {[%clk 0:00:40.4]} 54. Ng5+
{[%clk 0:00:14.2]} 54... Ke7 {[%clk 0:00:38.5]} 55. Nf3 {[%clk 0:00:06.8]} 55...
h3 {[%clk 0:00:38.4]} 56. Ke4 {[%clk 0:00:03.7]} 56... Rxc6 {[%clk 0:00:37.6]}
57. Kf4 {[%clk 0:00:05]} 57... Rg6 {[%clk 0:00:38]} 58. Nh2 {[%clk 0:00:02.9]}
58... Rg2 {[%clk 0:00:36.9]} 59. Nf3 {[%clk 0:00:04.1]} 59... h2 {[%clk
0:00:37.8]} 0-1

[Event "*** Titled Tuesday Blitz"]
[Site "Chess.com"]
[Date "2019.08.06"]
[Round "2"]
[White "AbasovN"]
[Black "WPWPWP-2015"]
[Result "1-0"]
[WhiteElo "2881"]
[BlackElo "2399"]
[TimeControl "180+2"]
[EndTime "13:24:07 PDT"]
[Termination "AbasovN won by resignation"]

1. e4 {[%clk 0:03:00.1]} 1... e5 {[%clk 0:02:59.9]} 2. Nf3 {[%clk 0:03:00.4]}
2... Nc6 {[%clk 0:03:00.5]} 3. Bb5 {[%clk 0:03:01.6]} 3... Nf6 {[%clk
0:03:01.2]} 4. O-O {[%clk 0:03:02]} 4... Nxe4 {[%clk 0:03:02]} 5. Re1 {[%clk
0:03:03.3]} 5... Nd6 {[%clk 0:03:03]} 6. Nxe5 {[%clk 0:03:04.6]} 6... Be7 {[%clk
0:03:02.8]} 7. Bf1 {[%clk 0:03:04.8]} 7... O-O {[%clk 0:03:02.8]} 8. Nc3 {[%clk
0:03:05.2]} 8... Nf5 {[%clk 0:03:02.5]} 9. Nf3 {[%clk 0:02:55.9]} 9... d5 {[%clk
0:03:01.7]} 10. d4 {[%clk 0:02:57.5]} 10... Nh4 {[%clk 0:02:55.1]} 11. Ne5
{[%clk 0:02:55.8]} 11... Nf5 {[%clk 0:02:22.6]} 12. Nxc6 {[%clk 0:02:32]} 12...
bxc6 {[%clk 0:02:22.3]} 13. Bf4 {[%clk 0:02:31.8]} 13... Be6 {[%clk 0:02:19]}
14. Na4 {[%clk 0:02:30.6]} 14... Bd6 {[%clk 0:02:14.8]} 15. Qd2 {[%clk
0:02:29.1]} 15... Qh4 {[%clk 0:02:10.7]} 16. Bxd6 {[%clk 0:02:26.3]} 16... cxd6
{[%clk 0:02:10.5]} 17. Rad1 {[%clk 0:02:26.5]} 17... Rab8 {[%clk 0:01:55.2]} 18.
b3 {[%clk 0:02:18.7]} 18... h6 {[%clk 0:01:49.1]} 19. c3 {[%clk 0:02:14.3]}
19... Qg5 {[%clk 0:01:45.9]} 20. Qxg5 {[%clk 0:02:07]} 20... hxg5 {[%clk
0:01:46.3]} 21. g3 {[%clk 0:02:08.9]} 21... g4 {[%clk 0:01:23.8]} 22. Kg2 {[%clk
0:02:05.6]} 22... g6 {[%clk 0:01:23.7]} 23. Be2 {[%clk 0:02:03.9]} 23... Ng7
{[%clk 0:01:18.7]} 24. Bd3 {[%clk 0:02:02.6]} 24... f5 {[%clk 0:01:16]} 25. Nb2
{[%clk 0:01:54.2]} 25... Kf7 {[%clk 0:01:15.7]} 26. h4 {[%clk 0:01:41.5]} 26...
gxh3+ {[%clk 0:01:08]} 27. Kxh3 {[%clk 0:01:43.4]} 27... Nh5 {[%clk 0:00:58.8]}
28. Kg2 {[%clk 0:01:41.9]} 28... Nf6 {[%clk 0:00:57.4]} 29. f3 {[%clk
0:01:40.7]} 29... Rh8 {[%clk 0:00:54.9]} 30. Bb1 {[%clk 0:01:39.1]} 30... Rh6
{[%clk 0:00:38.5]} 31. Rh1 {[%clk 0:01:37.6]} 31... Rbh8 {[%clk 0:00:37.7]} 32.
Rxh6 {[%clk 0:01:37.3]} 32... Rxh6 {[%clk 0:00:39.4]} 33. Nd3 {[%clk 0:01:39.2]}
33... g5 {[%clk 0:00:39]} 34. Re1 {[%clk 0:01:38.8]} 34... Rh8 {[%clk 0:00:38]}
35. b4 {[%clk 0:01:35]} 35... Bc8 {[%clk 0:00:35.1]} 36. Bc2 {[%clk 0:01:33.9]}
36... Bd7 {[%clk 0:00:29.3]} 37. a3 {[%clk 0:01:33.7]} 37... Be6 {[%clk
0:00:28.9]} 38. Nc1 {[%clk 0:01:28]} 38... a5 {[%clk 0:00:26.8]} 39. Nb3 {[%clk
0:01:28]} 39... axb4 {[%clk 0:00:27.5]} 40. axb4 {[%clk 0:01:29.9]} 40... Ra8
{[%clk 0:00:27.9]} 41. Na5 {[%clk 0:01:30.9]} 41... c5 {[%clk 0:00:26.2]} 42.
Kf2 {[%clk 0:01:25.5]} 42... cxb4 {[%clk 0:00:25.3]} 43. cxb4 {[%clk 0:01:27.4]}
43... Rb8 {[%clk 0:00:25.7]} 44. Nc6 {[%clk 0:01:22.2]} 44... Rc8 {[%clk
0:00:19.9]} 45. b5 {[%clk 0:01:22.9]} 45... Bd7 {[%clk 0:00:14.8]} 46. Ba4
{[%clk 0:01:00.3]} 46... Bxc6 {[%clk 0:00:15.8]} 47. bxc6 {[%clk 0:01:02.2]}
47... Ng8 {[%clk 0:00:15.5]} 48. Rc1 {[%clk 0:00:48.7]} 48... Rc7 {[%clk
0:00:14.8]} 49. Ke3 {[%clk 0:00:47.8]} 49... Ke7 {[%clk 0:00:12.8]} 50. Kd3
{[%clk 0:00:45.9]} 50... Kd8 {[%clk 0:00:09.2]} 51. Rh1 {[%clk 0:00:47.1]} 51...
Rg7 {[%clk 0:00:09.7]} 52. Rb1 {[%clk 0:00:42.7]} 52... Ne7 {[%clk 0:00:08.5]}
53. Rb8+ {[%clk 0:00:42.5]} 53... Kc7 {[%clk 0:00:09.3]} 54. Rb7+ {[%clk
0:00:43.6]} 54... Kc8 {[%clk 0:00:10.6]} 55. Bb5 {[%clk 0:00:43.9]} 55... f4
{[%clk 0:00:09.6]} 56. g4 {[%clk 0:00:45]} 56... Rh7 {[%clk 0:00:07.5]} 57. Ba6
{[%clk 0:00:45.6]} 57... Kd8 {[%clk 0:00:05.5]} 58. c7+ {[%clk 0:00:44.2]} 58...
Kd7 {[%clk 0:00:03.7]} 59. c8=R+ {[%clk 0:00:43.5]} 59... Kxc8 {[%clk
0:00:03.9]} 60. Rxe7+ {[%clk 0:00:45.4]} 60... Kd8 {[%clk 0:00:03.5]} 61. Rxh7
{[%clk 0:00:47.3]} 61... Ke8 {[%clk 0:00:04.8]} 62. Bb7 {[%clk 0:00:46.8]} 62...
Kf8 {[%clk 0:00:05.7]} 63. Bxd5 {[%clk 0:00:48.4]} 63... Ke8 {[%clk 0:00:07]}
64. Ke4 {[%clk 0:00:50.3]} 64... Kf8 {[%clk 0:00:08]} 65. Kf5 {[%clk 0:00:52.1]}
1-0

[Event "*** Titled Tuesday Blitz"]
[Site "Chess.com"]
[Date "2019.08.06"]
[Round "2"]
[White "payto1"]
[Black "albi1999"]
[Result "1/2-1/2"]
[WhiteElo "2331"]
[BlackElo "2479"]
[TimeControl "180+2"]
[EndTime "13:24:07 PDT"]
[Termination "Game drawn by agreement"]

1. d4 {[%clk 0:03:01.9]} 1... Nf6 {[%clk 0:02:59.8]} 2. Bg5 {[%clk 0:02:58]}
2... e6 {[%clk 0:03:00.5]} 3. e4 {[%clk 0:02:57.9]} 3... h6 {[%clk 0:02:55.8]}
4. Bxf6 {[%clk 0:02:58]} 4... Qxf6 {[%clk 0:02:57.7]} 5. Qd2 {[%clk 0:02:58.7]}
5... c5 {[%clk 0:02:53.4]} 6. c3 {[%clk 0:02:59.3]} 6... cxd4 {[%clk 0:02:49.8]}
7. cxd4 {[%clk 0:02:59.5]} 7... Nc6 {[%clk 0:02:51.4]} 8. Nf3 {[%clk 0:02:41.4]}
8... Bb4 {[%clk 0:02:50.3]} 9. Nc3 {[%clk 0:02:41.1]} 9... d6 {[%clk 0:02:51.2]}
10. Bd3 {[%clk 0:02:38.4]} 10... O-O {[%clk 0:02:51]} 11. a3 {[%clk 0:02:34.9]}
11... Ba5 {[%clk 0:02:51.3]} 12. Qe3 {[%clk 0:02:22]} 12... e5 {[%clk
0:02:47.6]} 13. d5 {[%clk 0:02:18.7]} 13... Nd4 {[%clk 0:02:45.1]} 14. O-O
{[%clk 0:02:12.9]} 14... Nxf3+ {[%clk 0:02:06.1]} 15. Qxf3 {[%clk 0:02:13.5]}
15... Qxf3 {[%clk 0:02:02.3]} 16. gxf3 {[%clk 0:02:15.1]} 16... Bxc3 {[%clk
0:01:59.2]} 17. bxc3 {[%clk 0:02:15.3]} 17... Bd7 {[%clk 0:02:01.1]} 18. c4
{[%clk 0:02:10.8]} 18... Rfc8 {[%clk 0:02:00.3]} 19. a4 {[%clk 0:02:04.7]} 19...
Kf8 {[%clk 0:01:58.4]} 20. Rfb1 {[%clk 0:02:00.7]} 20... Rc7 {[%clk 0:01:58.7]}
21. a5 {[%clk 0:02:00.9]} 21... Ke7 {[%clk 0:01:58.5]} 22. Rb4 {[%clk
0:02:00.8]} 22... Rf8 {[%clk 0:01:52.4]} 23. Rab1 {[%clk 0:01:59.8]} 23... Bc8
{[%clk 0:01:54]} 24. Kg2 {[%clk 0:01:53.8]} 24... g6 {[%clk 0:01:53.5]} 25. Kg3
{[%clk 0:01:44.9]} 25... f5 {[%clk 0:01:53.9]} 26. exf5 {[%clk 0:01:35.7]} 26...
gxf5 {[%clk 0:01:53.8]} 27. Kh4 {[%clk 0:01:36.3]} 27... Rg8 {[%clk 0:01:52.4]}
28. Bf1 {[%clk 0:01:37]} 28... Kf6 {[%clk 0:01:51.8]} 29. h3 {[%clk 0:01:28.8]}
29... Rg5 {[%clk 0:01:46.4]} 30. f4 {[%clk 0:01:28.8]} 30... exf4 {[%clk
0:01:46.2]} 31. Be2 {[%clk 0:01:28.1]} 31... Rg2 {[%clk 0:01:39.6]} 32. Rf1
{[%clk 0:01:25.9]} 32... Rcg7 {[%clk 0:01:39.2]} 33. Bf3 {[%clk 0:01:24.9]}
33... Rh2 {[%clk 0:01:31.7]} 34. c5 {[%clk 0:00:58.8]} 34... dxc5 {[%clk
0:01:23.7]} 35. Rxf4 {[%clk 0:00:55.5]} 35... Ke5 {[%clk 0:01:23.5]} 36. Rc4
{[%clk 0:00:52.2]} 36... f4 {[%clk 0:01:19.4]} 37. Re1+ {[%clk 0:00:40.4]} 37...
Kd6 {[%clk 0:01:20.1]} 38. Rh1 {[%clk 0:00:41.3]} 38... Rxh1 {[%clk 0:01:15.2]}
39. Bxh1 {[%clk 0:00:37.3]} 39... b5 {[%clk 0:01:12.7]} 40. axb6 {[%clk
0:00:31.7]} 40... axb6 {[%clk 0:01:13.4]} 41. Rxf4 {[%clk 0:00:33.2]} 41... b5
{[%clk 0:01:08.8]} 42. Rf6+ {[%clk 0:00:30.5]} 42... Ke5 {[%clk 0:01:09.8]} 43.
Rc6 {[%clk 0:00:28.6]} 43... Bd7 {[%clk 0:01:04.2]} 44. Rxc5 {[%clk 0:00:27.3]}
44... Rg1 {[%clk 0:01:00]} 45. Bf3 {[%clk 0:00:26.8]} 45... Kf4 {[%clk
0:00:59.6]} 46. Rc3 {[%clk 0:00:21.5]} 46... b4 {[%clk 0:01:00.8]} 47. Re3
{[%clk 0:00:19.9]} 47... Rf1 {[%clk 0:00:56.2]} 48. Bh5 {[%clk 0:00:13]} 48...
Rxf2 {[%clk 0:00:53.9]} 49. Rb3 {[%clk 0:00:13]} 49... Rh2 {[%clk 0:00:49.7]}
50. Rxb4+ {[%clk 0:00:13.7]} 50... Ke5 {[%clk 0:00:47.8]} 51. Bg4 {[%clk
0:00:11.7]} 51... Bxg4 {[%clk 0:00:48.9]} 52. Rxg4 {[%clk 0:00:11.2]} 52... Kxd5
{[%clk 0:00:50.1]} 53. Rg6 {[%clk 0:00:11.9]} 53... Ke5 {[%clk 0:00:51.6]} 54.
Rxh6 {[%clk 0:00:12.3]} 54... Kf5 {[%clk 0:00:53.1]} 55. Ra6 {[%clk 0:00:11.3]}
55... Rb2 {[%clk 0:00:53.6]} 56. Kh5 {[%clk 0:00:09.6]} 56... Rb8 {[%clk
0:00:54.2]} 57. Ra5+ {[%clk 0:00:09.5]} 57... Kf6 {[%clk 0:00:55.1]} 58. h4
{[%clk 0:00:09.6]} 58... Kg7 {[%clk 0:00:56.3]} 59. Kg5 {[%clk 0:00:09.7]} 59...
Rb1 {[%clk 0:00:55.6]} 60. Ra7+ {[%clk 0:00:09.4]} 60... Kh8 {[%clk 0:00:56.7]}
61. h5 {[%clk 0:00:10.4]} 61... Rb6 {[%clk 0:00:57.3]} 62. Rf7 {[%clk
0:00:05.7]} 62... Rb5+ {[%clk 0:00:57.9]} 63. Kg6 {[%clk 0:00:05.3]} 63... Rb6+
{[%clk 0:00:59.2]} 64. Rf6 {[%clk 0:00:06.2]} 64... Rxf6+ {[%clk 0:00:59.9]} 65.
Kxf6 {[%clk 0:00:07.4]} 65... Kh7 {[%clk 0:01:01.8]} 1/2-1/2

[Event "*** Titled Tuesday Blitz"]
[Site "Chess.com"]
[Date "2019.08.06"]
[Round "2"]
[White "GMSrinath"]
[Black "ElHelvetico"]
[Result "1-0"]
[WhiteElo "2837"]
[BlackElo "2695"]
[TimeControl "180+2"]
[EndTime "13:24:13 PDT"]
[Termination "GMSrinath won on time"]

1. e4 {[%clk 0:02:58.4]} 1... c5 {[%clk 0:03:00.7]} 2. Nf3 {[%clk 0:02:59.4]}
2... d6 {[%clk 0:03:02.2]} 3. d4 {[%clk 0:03:01]} 3... cxd4 {[%clk 0:03:04.1]}
4. Nxd4 {[%clk 0:03:02.9]} 4... Nf6 {[%clk 0:03:05.8]} 5. Nc3 {[%clk 0:03:04.5]}
5... a6 {[%clk 0:03:07.3]} 6. h3 {[%clk 0:03:06.1]} 6... g6 {[%clk 0:03:07.5]}
7. g4 {[%clk 0:03:07.3]} 7... Bg7 {[%clk 0:03:09.1]} 8. Bg2 {[%clk 0:03:09]}
8... O-O {[%clk 0:03:09.1]} 9. O-O {[%clk 0:03:10.5]} 9... Nc6 {[%clk
0:03:10.5]} 10. Nde2 {[%clk 0:02:56.5]} 10... Bd7 {[%clk 0:02:53.1]} 11. b3
{[%clk 0:02:44.7]} 11... Rc8 {[%clk 0:02:51.9]} 12. Be3 {[%clk 0:02:42.5]} 12...
b5 {[%clk 0:02:52.6]} 13. Nd5 {[%clk 0:02:43.7]} 13... Nxd5 {[%clk 0:02:48.7]}
14. exd5 {[%clk 0:02:45.6]} 14... Na5 {[%clk 0:02:11.8]} 15. Qd2 {[%clk
0:02:36.6]} 15... Bxa1 {[%clk 0:01:58.5]} 16. Rxa1 {[%clk 0:02:38.5]} 16... Nb7
{[%clk 0:01:58]} 17. f4 {[%clk 0:02:36.5]} 17... Qc7 {[%clk 0:01:58.8]} 18. Nd4
{[%clk 0:02:36.6]} 18... e5 {[%clk 0:01:47.6]} 19. Nc6 {[%clk 0:02:19.8]} 19...
Rfe8 {[%clk 0:01:25]} 20. Qf2 {[%clk 0:02:18.7]} 20... Bxc6 {[%clk 0:01:09.6]}
21. dxc6 {[%clk 0:02:20.6]} 21... Nd8 {[%clk 0:00:55.7]} 22. Bb6 {[%clk
0:02:10.8]} 22... Qe7 {[%clk 0:00:57.2]} 23. fxe5 {[%clk 0:01:11.4]} 23... Nxc6
{[%clk 0:00:57.5]} 24. exd6 {[%clk 0:01:12.5]} 24... Qxd6 {[%clk 0:00:59.4]} 25.
Rf1 {[%clk 0:01:13.4]} 25... Ne5 {[%clk 0:00:57]} 26. Bd4 {[%clk 0:01:14.7]}
26... Rc7 {[%clk 0:00:52.7]} 27. c3 {[%clk 0:01:08.9]} 27... b4 {[%clk
0:00:41.8]} 28. c4 {[%clk 0:01:05.2]} 28... Nd3 {[%clk 0:00:41.7]} 29. Qf6
{[%clk 0:01:05.6]} 29... Qxf6 {[%clk 0:00:40.7]} 30. Rxf6 {[%clk 0:01:07.5]}
30... Rd8 {[%clk 0:00:35.3]} 31. Bb6 {[%clk 0:01:01.6]} 31... Rcd7 {[%clk
0:00:34.3]} 32. Bxd8 {[%clk 0:00:50.9]} 32... Rxd8 {[%clk 0:00:36.2]} 33. Rxa6
{[%clk 0:00:52.4]} 33... h5 {[%clk 0:00:34.6]} 34. g5 {[%clk 0:00:42.4]} 34...
Nf4 {[%clk 0:00:35.5]} 35. c5 {[%clk 0:00:40.3]} 35... Rd2 {[%clk 0:00:35.8]}
36. Bf1 {[%clk 0:00:39.3]} 36... h4 {[%clk 0:00:30.1]} 37. Ra4 {[%clk
0:00:25.4]} 37... Rd5 {[%clk 0:00:26.9]} 38. Rxb4 {[%clk 0:00:24.9]} 38... Rxg5+
{[%clk 0:00:27.8]} 39. Kf2 {[%clk 0:00:26.5]} 39... Rf5 {[%clk 0:00:24.5]} 40.
Rb8+ {[%clk 0:00:27.6]} 40... Kg7 {[%clk 0:00:25.5]} 41. c6 {[%clk 0:00:28.7]}
41... Nxh3+ {[%clk 0:00:23]} 42. Ke1 {[%clk 0:00:24.1]} 42... Re5+ {[%clk
0:00:19.8]} 43. Kd2 {[%clk 0:00:23]} 43... Rd5+ {[%clk 0:00:20.5]} 44. Ke3
{[%clk 0:00:22.5]} 44... Rc5 {[%clk 0:00:16.8]} 45. Bxh3 {[%clk 0:00:21.8]}
45... Rxc6 {[%clk 0:00:16.7]} 46. Rd8 {[%clk 0:00:20.2]} 46... f5 {[%clk
0:00:16.4]} 47. Rd4 {[%clk 0:00:17]} 47... Rc3+ {[%clk 0:00:15]} 48. Rd3 {[%clk
0:00:18.5]} 48... Rc1 {[%clk 0:00:15.7]} 49. b4 {[%clk 0:00:18.8]} 49... Kf6
{[%clk 0:00:14.6]} 50. b5 {[%clk 0:00:19.2]} 50... g5 {[%clk 0:00:15.2]} 51. b6
{[%clk 0:00:18.4]} 51... Rc8 {[%clk 0:00:11.3]} 52. b7 {[%clk 0:00:19.1]} 52...
Rb8 {[%clk 0:00:12.6]} 53. Bg2 {[%clk 0:00:20.7]} 53... g4 {[%clk 0:00:11.4]}
54. Kf4 {[%clk 0:00:20.9]} 54... h3 {[%clk 0:00:12.1]} 55. Bc6 {[%clk 0:00:22]}
55... h2 {[%clk 0:00:10.9]} 56. Rd2 {[%clk 0:00:18]} 1-0